Cogmind - Beta 17.1 @@@ ROGUE MODE // 2026.09.04 @ 07:34:27 Player: SunShine214 Result: Destroyed by D-53 Grenadier with Mini Grenade Launcher Performance ------------- Evolutions (0) 0 Regions Visited (2) 400 Robots Destroyed (25) 125 Value Destroyed (468) 468 Prototype IDs (0) 0 Alien Tech Used (0) 0 Bonus (0) 0 TOTAL SCORE: 993 Bonus ------- None Cogmind --------- Core Integrity 0/250 Matter 266/300 Energy 70/100 System Corruption 2% Temperature Cool (20) Movement Flying (35) Location -10/Mines Parts ------- > --- POWER (1) -------- (None) > --- PROPULSION (2) --- VTOL Module > --- UTILITY (2) ------ Hacking Suite Hacking Suite > --- WEAPON (2) ------- (None) > --- INVENTORY (5) ---- Light Treads High-capacity Storage Unit Improved Targeting Computer Propulsion Shielding Plasma Cutter Peak State ------------ > --- POWER ------------ Ion Engine > --- PROPULSION ------- Light Treads Light Treads > --- UTILITY ---------- Large Storage Unit Seismic Detector > --- WEAPON ----------- Particle Gun Heavy Assault Rifle > --- INVENTORY -------- Ion Engine Light Treads Light Treads Large Storage Unit Improved Targeting Computer Core Shielding Propulsion Shielding Propulsion Shielding Hacking Suite Small Laser Small Laser Light Assault Rifle Heavy Assault Rifle Mining Laser Plasma Cutter [Rating: 11] Favorites ----------- Power Ion Engine Engine Ion Engine Propulsion Light Treads Treads Light Treads Flight Unit VTOL Module Utility Seismic Detector Device Seismic Detector Storage Large Storage Unit Hackware Hacking Suite Weapon Small Laser Energy Gun Small Laser Ballistic Gun Assault Rifle Build | -11 -10 -10 ------- Run | Yrd Mat Min Slots Evolved . | . . . Power . | . . . Propulsion . | . . . Utility . | . . . Weapon . | . . . Parts Attached 20 | 8 8 4 Power 2 | 1 1 . Engine 2 | 1 1 . Core . | . . . Reactor . | . . . Propulsion 5 | 2 1 2 Treads 3 | 2 1 . Leg . | . . . Wheel . | . . . Hover . | . . . Flight 2 | . . 2 Utility 5 | 2 1 2 Device 1 | 1 . . Storage 2 | 1 1 . Processor . | . . . Hackware 2 | . . 2 Protection . | . . . Artifact . | . . . Weapon 8 | 3 5 . Energy Gun 3 | 1 2 . Energy Cannon . | . . . Ballistic Gun 5 | 2 3 . Ballistic Cannon . | . . . Launcher . | . . . Special Weapon . | . . . Impact Weapon . | . . . Slashing Weapon . | . . . Piercing Weapon . | . . . Special Melee Weapon . | . . . Unidentified Prototypes . | . . . Parts Lost 5 | . 2 3 Power . | . . . Propulsion 2 | . 1 1 Utility 1 | . . 1 Weapon 2 | . 1 1 Highest Loss Streak 3 | . 1 3 To Critical Strikes . | . . . Average Backups 9 | . 9 14 Power . | . . . Propulsion 2 | . 2 3 Utility 4 | . 4 5 Weapon 1 | . 1 2 Tool/Special . | . . . Unused Backups 14 | . 3 11 Power . | . . . Propulsion 2 | . . 2 Utility 6 | . 2 4 Weapon 5 | . 1 4 Tool/Special 1 | . . 1 Average Slot Usage (%) 99 | . 99 98 Engine 14 | . 14 14 Treads 27 | . 27 28 Device 13 | . 14 12 Storage 13 | . 14 13 Energy Gun 14 | . 14 14 Ballistic Gun 13 | . 13 14 Peak Build Rating 11 | 7 11 11 Average Rating 8 | 5 8 10 On Entrance 6 | . 7 11 Avg Prop Armor Cover (%) 11 | . . 11 Naked Turns . | . . . Heaviest Build 32 | 14 32 32 Greatest Support 40 | 40 40 40 Greatest Overweight (x) 1 | . 1 1 Average Overweight (x) . | . . . Largest Inventory Capacity 15 | 8 15 15 Average Capacity 13 | 7 13 14 Most Carried 15 | 1 15 15 Average Carried 9 | . 9 14 Final Capacity 15 | 8 15 5 Final Carried 15 | 1 15 5 Class Distribution -------------------- 98% | Mutant Dominant Class ---------------- Mutant | -10/Materials Mutant | -10/Mines Resources | -11 -10 -10 ----------- Run | Yrd Mat Min Matter Collected 556 | 305 251 . Remotely . | . . . Salvage Created 766 | 138 628 . Parts 55 | 9 46 . Haulers Intercepted 2 | . 2 . Recyclers Shooed 1 | 1 . . Parts Field Recycled . | . . . Retrieved Matter . | . . . Parts Self-Destructed . | . . . Prevented . | . . . Parts Restored . | . . . Kills | -11 -10 -10 ------- Run | Yrd Mat Min Combat Hostiles Destroyed 15 | . 15 . Guns 15 | . 15 . Classes Destroyed 8 | 2 6 . Worker 1 | . 1 . Tunneler 2 | 2 . . Hauler 2 | . 2 . Recycler 1 | 1 . . Operator 3 | . 3 . Watcher 1 | . 1 . Swarmer 6 | . 6 . Grunt 9 | . 9 . Best Kill Streak 5 | 3 5 . Combat Bots Only 5 | . 5 . Max Kills in Single Turn 2 | 2 2 . Gunslinging 1 | . 1 . Exploded . | . . . Melee . | . . . Uniques/NPCs Destroyed . | . . . Combat | -11 -10 -10 -------- Run | Yrd Mat Min Hostile Shots Fired 132 | . 90 42 Missed 35 | . 26 9 Hits 97 | . 64 33 Melee 1 | . . 1 Projectile 96 | . 64 32 AOE 2 | . . 2 Critical Strikes 1 | . . 1 Part Disruptions 2 | . . 2 Damage Taken 1112 | . 671 441 Core 258 | . 125 133 Absorbed by Shields . | . . . Core Remaining (%) 100 | 100 . . Volleys Fired 76 | 9 66 1 Largest 2 | 2 2 2 Hottest 88 | 60 88 88 Shots Fired 149 | 17 130 2 Gun 149 | 17 130 2 Cannon . | . . . Launcher . | . . . Special . | . . . Kinetic 76 | 9 66 1 Thermal 73 | 8 64 1 Explosive . | . . . Electromagnetic . | . . . Robot Hit Streak 7 | 2 7 . Robot Miss Streak 8 | 2 8 3 Penetration Max . | . . . Secondary Targets 1 | . 1 . Max Gunslinging Chain 1 | . 1 . Shots Hit Robots 84 | 8 76 . Core Hits 43 | 4 39 . Critical Kills . | . . . Critical Parts Destroyed 1 | . 1 . Critical Strikes 2 | . 2 . Burn 1 | . 1 . Destroy 1 | . 1 . Melee Attacks . | . . . Impact . | . . . Slashing . | . . . Piercing . | . . . Sneak Attacks . | . . . Combat Hostiles . | . . . Follow-up Attacks . | . . . Damage Inflicted 1094 | 85 982 27 Guns 1048 | 85 963 . Cannons . | . . . Explosions . | . . . Melee . | . . . Ramming 46 | . 19 27 Kinetic 523 | 13 510 . Thermal 525 | 72 453 . Explosive . | . . . Electromagnetic . | . . . Impact . | . . . Slashing . | . . . Piercing . | . . . Highest Corruption 2 | . 2 2 Average Corruption 1 | . 1 2 Corruption Purged . | . . . Corruption Blocked . | . . . Effects 18 | . 12 6 Message Errors 8 | . 5 3 Matter Fused 3 | . 2 1 Heat Flow Errors 2 | . 2 . Energy Discharges 3 | . 2 1 Data Loss (minor) 1 | . . 1 Weapon Failures 1 | . 1 . Overload Shots . | . . . Overflow Damage . | . . . Projectiles . | . . . Explosions . | . . . Melee . | . . . Knockbacks 1 | . . 1 Impact 1 | . . 1 Kinetic . | . . . Secondary . | . . . Self-Inflicted Damage . | . . . Shots . | . . . Rammed 8 | . 5 3 Targets Rammed 8 | . 5 3 Kicked . | . . . Crushed . | . . . Highest Temperature 294 | . 294 69 Average Temperature 62 | . 66 28 Received Heat Transfer 533 | . 213 320 Effects 1 | . 1 . Energy Bleed 1 | . 1 . Siege Activations . | . . . Martial Activations . | . . . Shielding Activations . | . . . Robots Disrupted . | . . . Combat Hostiles . | . . . Robots Corrupted . | . . . Combat Hostiles . | . . . Parts Fried . | . . . Impact Corruptions . | . . . Robots Melted . | . . . Combat Hostiles . | . . . Parts Melted . | . . . Heat Transferred 1258 | 175 1083 . Parts Sabotaged . | . . . Parts Stolen . | . . . Parts Stripped . | . . . Power Chain Reactions . | . . . Alert | -11 -10 -10 ------- Run | Yrd Mat Min Maximum Alert Level . | . . . Low Security (%) 100 | 100 100 100 Level 1 . | . . . Level 2 . | . . . Level 3 . | . . . Level 4 . | . . . Level 5 . | . . . High Security . | . . . Max Security . | . . . Peak Influence 109 | 10 109 4 Initial 4 | . . 4 Average 35 | . 43 . Influence Increases 477 | 15 462 . Destroy 0b10 Robot/C 300 | . 300 . Destroy 0b10 Robot/NC 50 | 15 35 . Destroy Leader 66 | . 66 . Successful Hack 16 | . 16 . Lose Combat Pursuer 45 | . 45 . Influence Decreases 477 | 15 450 12 Entered New Map 8 | . . 8 Time Decay 459 | 15 440 4 Lost Part 10 | . 10 . Squads Dispatched 3 | . 3 . Investigation . | . . . Extermination . | . . . Reinforcement 3 | . 3 . Assault . | . . . Garrison . | . . . Intercept . | . . . Searches Triggered . | . . . Construction Impeded . | . . . Haulers Reinforced . | . . . Active Scanning Responses . | . . . Cargo Convoy Interrupts . | . . . Stealth | -11 -10 -10 --------- Run | Yrd Mat Min Distress Signals 2 | . 2 . Communications Jammed . | . . . Distress Signals . | . . . Times Spotted 43 | . 35 8 Peak Tracking Total 8 | . 5 8 Tactical Retreats 4 | . 3 1 Traps | -11 -10 -10 ------- Run | Yrd Mat Min Traps Triggered 3 | . 3 . Indirectly . | . . . Trap Hack Attempts . | . . . Triggered . | . . . Disarmed 6 | . 6 . Reprogrammed . | . . . Reused . | . . . Traps Extracted . | . . . Installed . | . . . Triggered . | . . . Machines | -11 -10 -10 ---------- Run | Yrd Mat Min Machines Disabled . | . . . Max in Single Turn . | . . . Machines Repaired . | . . . Machines Dismantled . | . . . Machines Sabotaged . | . . . Overloaded Fab Kills . | . . . Hacking | -11 -10 -10 --------- Run | Yrd Mat Min Machines Accessed 6 | . 6 . Terminals 5 | . 5 . Fabricators . | . . . Repair Stations . | . . . Recycling Units 1 | . 1 . Scanalyzers . | . . . Garrison Access . | . . . Total Hacks 11 | . 11 . Successful 7 | . 7 . Failed 4 | . 4 . Catastrophic 2 | . 2 . Database Lockouts . | . . . Manual 3 | . 3 . Terminals 10 | . 10 . Fabricators . | . . . Repair Stations . | . . . Recycling Units 1 | . 1 . Scanalyzers . | . . . Garrison Access . | . . . Terminal Hacks 6 | . 6 . Disarm Traps 2 | . 2 . Dispatch Records 2 | . 2 . Hauler Manifests 1 | . 1 . Registered Components 1 | . 1 . Fabricator Hacks . | . . . Repair Station Hacks . | . . . Recycling Unit Hacks 1 | . 1 . Retrieve Components 1 | . 1 . Scanalyzer . | . . . Garrison Access Hacks . | . . . Unauthorized Hacks . | . . . Terminals . | . . . Fabricators . | . . . Repair Stations . | . . . Recycling Units . | . . . Scanalyzers . | . . . Garrison Access . | . . . Data Cores Recovered . | . . . Used . | . . . Hacking Detections 4 | . 4 . Full Trace Events . | . . . Feedback Events . | . . . Feedback Blocked . | . . . Robot Schematics Acquired . | . . . Robots Built . | . . . Authchips . | . . . Time . | . . . Total Robot Build Rating . | . . . Part Schematics Acquired . | . . . Parts Built . | . . . Authchips . | . . . Time . | . . . Total Part Build Rating . | . . . Part Studies Acquired . | . . . Parts Repaired . | . . . Time . | . . . Parts Recycled . | . . . Recycled Matter . | . . . Retrieved Matter . | . . . Retrieved Components 6 | . 6 . Parts Scanalyzed . | . . . Part Schematics Acquired . | . . . Parts Damaged . | . . . Bothacking | -11 -10 -10 ------------ Run | Yrd Mat Min Used RIF Installer . | . . . Robots Hacked . | . . . Non-combat . | . . . Combat . | . . . Robot Hacks Applied . | . . . Relay Couplers Released . | . . . Fabnet Peak Effective % . | . . . Robots Rewired . | . . . Allies Hacked . | . . . Hacks Repelled . | . . . Allies | -11 -10 -10 -------- Run | Yrd Mat Min Total Allies . | . . . Largest Group . | . . . Highest-Rated Group . | . . . Highest-Rated Ally . | . . . Total Orders . | . . . Ally Attacks . | . . . Total Damage . | . . . Kills . | . . . Allies Corrupted . | . . . Allies Melted . | . . . Intel | -11 -10 -10 ------- Run | Yrd Mat Min Active Infowar (turns) 1883 | 21 1627 235 Seismic 1883 | 21 1627 235 Robot Analysis Total . | . . . Derelict Logs Recovered 1 | . . 1 Drone Launches . | . . . Drone Recoveries . | . . . Exploration | -11 -10 -10 ------------- Run | Yrd Mat Min Turns Passed 2008 | 121 1627 260 Spaces Moved 1019 | 57 811 151 Core 7 | 7 . . Treads 1010 | 50 811 149 Legs . | . . . Wheels . | . . . Hover . | . . . Flight 2 | . . 2 Fastest Speed 35 | 50 160 35 Average Speed 159 | 146 160 160 Slowest Speed 240 | 160 240 240 Overloaded Moves . | . . . Propulsion Burnouts . | . . . Robots Hopped . | . . . Potential Cave-ins . | . . . Cave-ins Triggered . | . . . Exploration Rate (%) 45 | 4 96 37 Regions Visited 2 Branch Regions 1 Pre-discovered Areas . | . . . Known Exits Taken . | . . . Unknown Exits Taken 2 | 1 1 . Scrap Searched . | . . . Spaces Dug . | . . . Terrain Destroyed . | . . . Melee . | . . . Projectile . | . . . AOE . | . . . Terrain Rammed . | . . . Walls Destroyed . | . . . Machines Disabled . | . . . Actions | -11 -10 -10 --------- Run | Yrd Mat Min Total 1251 | 74 1012 165 Wait 98 | . 98 . Move 1017 | 56 810 151 Hop . | . . . Pick Up 19 | 1 17 1 Fast Attach 11 | 7 1 3 Attach 1 | . 1 . Detach . | . . . Swap 8 | 1 6 1 Drop 13 | . 8 5 Fire 76 | 9 66 1 Melee . | . . . Ram . | . . . Kick . | . . . Crush 8 | . 5 3 Escape Stasis . | . . . Rewire . | . . . Trap . | . . . Miscellaneous . | . . . Route ------- -11/Scrapyard -10/Materials (discovered 6 exits: [*Mat x3] / [*Min x2] / [*Sub]) -10/Mines History --------- Turn | Location | Event 29 | -11/Scrapyard | Discovered new exit (range 15) 122 | -11/Scrapyard | Entered Materials 313 | -10/Materials | Build established: Mutant 380 | -10/Materials | Discovered new exit (range 16) 934 | -10/Materials | Discovered new exit (range 13) 1145 | -10/Materials | Discovered new exit (range 8) 1377 | -10/Materials | Discovered new exit (range 8) 1477 | -10/Materials | Discovered new exit (range 10) 1568 | -10/Materials | Discovered new exit (range 15) 1749 | -10/Materials | Entered Mines 1821 | -10/Mines | A weapon hastily lodged in a ceiling crevice suddenly fell to the ground 1949 | -10/Mines | Assembled infested the area 1951 | -10/Mines | Learned 2 Materials zone layouts 1991 | -10/Mines | Core integrity fell below 50% 2009 | -10/Mines | Core integrity fell below 20% 2009 | -10/Mines | Destroyed by D-53 Grenadier with Mini Grenade Launcher Last Messages --------------- Data stored: Materials zone layouts (x2). 01984_ Seismic Detector destroyed. 01997_ Dropped Lrg. Storage Unit. 01999_ Acquired Hacking Suite. 02002_ Acquired VTOL Module. 02004_ Dropped Lgt. Treads. 02004_ Dropped Ion Engine. 02005_ Dropped Hvy. Assault Rifle. 02006_ Acquired VTOL Module. 02006_ VTOL Module destroyed. 02007_ C-45 Heavy ARC bursts open, deploying its payload. 02007_ D-53 Grenadier unfolds itself. 02007_ R-06 Scavenger collects Hvy. Assault Rifle. 02008_ Acquired Hacking Suite. 02008_ as-17552 destroyed. 02008_ R-06 Scavenger destroyed. 02008_ as-85011 destroyed. 02009_ Particle Gun destroyed. Map ----- +----------------------------------------------------+ | ##??????????????????####?????????????????????? | | #???????????????????????????????????????????? | | ## #??????????????????????????????????????????? | | #?# #??????????????????????????????????????????? | | #??# ##??????????????????????????????????????????? | | #???##???????????????????????????????????????????? | | ##????####???????????????????????????????????????? | | ###### #####???????????????????????????????????? | | ## ##??????????????????????????????????? | | """ #??????????????????????????????????? | | """ #??????????????????????????????????? | | """ #??????????????????????????????????? | | ##?????????????????????????????????? | | ##????????????????????????????????? | | ## k ##???????????????????????????????? | | ### ##??????????????????????????????? | | ??# ## ####???????????????????????????? | | ??# ##### ########????????????????????? | | ??# #???# ## #????????????????????? | | ??# #???## #??????????????####### | | ?? #????## #??????????????# | | ?####??????## % d #??????????????# | | ????????????## ## d [ #???????????#### ##### | | ?????????????# #####=%| #?####??????# #???? | | ?????????????# #???# ! ### ####???# ####???? | | ?????????????## #???# @ # ##### #??????? | | ??????????????## #???# [% a #??????? | | ???????????????####???## a!%a #??????? | | ???????????????????????##!/a* ######??????? | | ????????????????????????### = ## #???????????? | | ???????????????????????????###### ##???????????? | | ????????????????????????????????#####????????????? | | ?????????????????????????????????????????????????? | | ?????????????????????????????????????????????????? | | | | | | | | | | | | | | | | | | | | | | | | | | | | | | | | | +----------------------------------------------------+ Best States ------------- Heat Dissipation 25 Energy Generation 10 Energy Capacity 250 Matter Stores 300 Matter Capacity 300 Sight Range 16 Terrain Scan Density 10 Evasion (%) 40 Recoil Reduction 2 Offensive Hacking 10 Item Schematics ----------------- None Robot Schematics ------------------ None Fabricated ------------ Nothing Repaired ---------- Nothing Studied --------- None Alien Tech Used ----------------- None Achievements -------------- None Challenges ------------ None Game ------ Seed NavigationDeflectorMask Manual? 0 Play Time 00:13:54 Cumulative 217.8 hours Start 2026.09.04 @ 07:18:56 End 2026.09.04 @ 07:34:27 Sessions 1 Manual Loads 0 Difficulty Rogue Special Mode None Game No. 329 Rogue 329 Adventurer 0 Explorer 0 Win Type - Total 1 Types 1/0/0/0/0/0/0/0/0/0 Lore% 68 Gallery% 61 Achievement% 47 Wizard Run 0 Options --------- Layout 1 ASCII 0 Keyboard 1 Movement Arrows Keybinds 0 Fullscreen 1 Font 24/Smallcaps Map View 50x35 Zoom Use 0% Tactical HUD 1 Map Filters NONE Filters NONE Steam 1 RUN: e94517c8-896f-4120-819b-9488b218368d